fUST/lending_fUST_20240430
["ID","MTS","AMOUNT","RATE_DAILY","PERIOD"]
[324930869,1714431046988,-1626.53,0.00034999,2]
[324930870,1714431046998,-1626.53,0.00034999,2]
[324930871,1714431047008,-1626.53,0.00034999,2]
[324930872,1714431047017,-1626.53,0.00034999,2]
[324930873,1714431047027,-1626.53,0.00034999,2]
[324930874,1714431047036,-1626.53,0.00034999,2]
[324930875,1714431047046,-151.0,0.00034999,2]
[324930876,1714431047056,-151.0,0.00034999,2]
[324930877,1714431047065,-151.0,0.00034999,2]
[324930878,1714431047075,-151.0,0.00034999,2]
[324930879,1714431047084,-151.0,0.00034999,2]
[324930880,1714431047094,-151.0,0.00034999,2]
[324930881,1714431047103,-151.0,0.00034999,2]
[324930882,1714431047112,-151.0,0.00034999,2]
[324930883,1714431047121,-151.0,0.00034999,2]
[324930884,1714431047131,-151.0,0.00034999,2]
[324930885,1714431047140,-151.0,0.00034999,2]
[324930886,1714431047149,-269.755913,0.00034999,2]
[324930887,1714431047158,-269.755913,0.00034999,2]
[324930888,1714431047167,-470.02544,0.00034999,2]
[324930889,1714431047177,-470.02544,0.00034999,2]
[324930890,1714431047187,-151.0,0.00034999,2]
[324930891,1714431047196,-151.0,0.00034999,2]
[324930892,1714431047212,-224.033827,0.00034999,2]
[324930893,1714431047220,-224.033827,0.00034999,2]
[324930894,1714431047231,-12107.40662543,0.00035,7]
[324930895,1714431047240,-882.74972938,0.00035,4]
[324930896,1714431047250,-555.39795402,0.00035,10]
[324930897,1714431047259,-214.59376254,0.00035,4]
[324930898,1714431047270,-5914.65556104,0.00035,4]
[324930899,1714431047279,-1307.89147106,0.00035,7]
[324930900,1714431047290,-12756.78468986,0.00035,4]
[324930901,1714431047302,-159.9713947,0.00035,30]
[324930902,1714431047312,-791.81686347,0.00035,30]
[324930903,1714431047322,-961.68740692,0.00035,30]
[324930904,1714431047331,-10285.44452255,0.00035,2]
[324930905,1714431047456,-33147.42444606,0.00035,7]
[324930906,1714431047466,-2102.2310673,0.00035,120]
[324930907,1714431047478,-1016.73303549,0.00035,4]
[324930908,1714431047488,-16098.46283785,0.00035,4]
[324930909,1714431047498,-1025.00357517,0.00035,2]
[324930910,1714431047507,-10590.66904835,0.00035,7]
[324930911,1714431047516,-165.11392771,0.00035,2]
[324930912,1714431047524,-154.81422293,0.00035,4]
[324930913,1714431047534,-151.0,0.00035,2]
[324930914,1714431047543,-151.0,0.00035,2]
[324930915,1714431047554,-151.0,0.00035,2]
[324930916,1714431047564,-151.0,0.00035,2]
[324930917,1714431047574,-151.0,0.00035,2]
[324930918,1714431047583,-151.0,0.00035,2]
[324930919,1714431047592,-151.0,0.00035,2]
[324930920,1714431047602,-258.239072,0.00035,2]
[324930921,1714431047613,-151.0,0.00035,2]
[324930922,1714431047623,-151.0,0.00035,2]
[324930923,1714431047633,-151.0,0.00035,2]
[324930924,1714431047642,-151.0,0.00035,2]
[324930925,1714431047653,-151.0,0.00035,2]
[324930926,1714431047663,-151.0,0.00035,2]
[324930927,1714431047672,-151.0,0.00035,2]
[324930928,1714431047682,-151.0,0.00035,2]
[324930929,1714431047691,-151.0,0.00035,2]
[324930930,1714431047701,-151.0,0.00035,2]
[324930931,1714431047710,-151.0,0.00035,2]
[324930932,1714431047721,-151.0,0.00035,2]
[324930933,1714431047735,-151.0,0.00035,2]
[324930934,1714431047744,-151.0,0.00035,2]
[324930935,1714431047754,-151.0,0.00035,2]
[324930936,1714431047763,-151.0,0.00035,2]
[324930937,1714431047772,-151.0,0.00035,2]
[324930938,1714431047781,-151.0,0.00035,2]
[324930939,1714431047790,-151.0,0.00035,2]
[324930940,1714431047799,-151.0,0.00035,2]
[324930941,1714431047808,-151.0,0.00035,2]
[324930942,1714431047818,-179.260984,0.00035,2]
[324930943,1714431047828,-151.0,0.00035,2]
[324930944,1714431047838,-151.0,0.00035,2]
[324930945,1714431047847,-151.0,0.00035,2]
[324930946,1714431047858,-269.755913,0.00035,2]
[324930947,1714431047868,-269.755913,0.00035,2]
[324930948,1714431047878,-470.02544,0.00035,2]
[324930949,1714431047887,-470.02544,0.00035,2]
[324930950,1714431047897,-151.0,0.00035,2]
[324930951,1714431047912,-151.0,0.00035,2]
[324930952,1714431047921,-224.033827,0.00035,2]
[324930953,1714431047931,-224.033827,0.00035,2]
[324930954,1714431047940,-154.84831847,0.00035066,7]
[324930955,1714431047949,-154.84831847,0.00035083,7]
[324930956,1714431047958,-662.56100288,0.000351,2]
[324930957,1714431047968,-152.77728267,0.00035364,7]
[324930958,1714431047980,-1508.16249302,0.00035455,14]
[324930959,1714431047990,-2354.648268,0.00035616,120]
[324930960,1714431047999,-500.0,0.00035799,5]
[324930961,1714431048010,-740.60043174,0.0003587,7]
[324930962,1714431048019,-154.78330338,0.0003589,2]
[324930963,1714431048028,-597.0,0.0003589,2]
[324930964,1714431048039,-154.84831847,0.00035919,7]
[324930965,1714431048050,-5000.0,0.00036,4]
[324930966,1714431048059,-1828.44111052,0.00036,30]
[324930967,1714431048071,-62070.07144477,0.00036,14]
[324930968,1714431048080,-151.0,0.00036,2]
[324930969,1714431048089,-151.0,0.00036,2]
[324930970,1714431048100,-151.0,0.00036,2]
[324930971,1714431048110,-151.0,0.00036,2]
[324930972,1714431048120,-151.0,0.00036,2]
[324930973,1714431048130,-169.95711,0.00036,2]
[324930974,1714431048140,-151.0,0.00036,2]
[324930975,1714431048150,-151.0,0.00036,2]
[324930976,1714431048160,-265.21045,0.00036,2]
[324930977,1714431048169,-151.0,0.00036,2]
[324930978,1714431048179,-151.0,0.00036,2]
[324930979,1714431048187,-151.0,0.00036,2]
[324930980,1714431048197,-151.0,0.00036,2]
[324930981,1714431048208,-597.0,0.00036,2]
[324930982,1714431048220,-151.0,0.00036,2]
[324930983,1714431048232,-151.0,0.00036,2]
[324930984,1714431048241,-222.0,0.00036,2]
[324930985,1714431048251,-151.0,0.00036,2]
[324930986,1714431048260,-222.0,0.00036,2]
[324930987,1714431048269,-222.0,0.00036,2]
[324930988,1714431048279,-269.755913,0.00036,2]
[324930989,1714431048288,-269.755913,0.00036,2]
[324930990,1714431048298,-470.02544,0.00036,2]
[324930991,1714431048307,-470.02544,0.00036,2]
[324930992,1714431048316,-151.0,0.00036,2]
[324930993,1714431048326,-155.768431,0.00036,2]
[324930994,1714431048334,-224.033827,0.00036,2]
[324930995,1714431048343,-224.033827,0.00036,2]
[324930996,1714431048352,-256.30765386,0.0003624,2]
[324930997,1714431048362,-154.84831847,0.00036595,7]
[324930998,1714431048372,-662.56100288,0.000369,2]
[324930999,1714431048382,-200.0,0.00036984,120]
[324931000,1714431048391,-3512.35610251,0.00037,2]
[324931001,1714431048400,-10579.73867581,0.00037,2]
[324931002,1714431048411,-154.84831847,0.00037109,7]
[324931003,1714431048419,-31401.6058109,0.0003717,2]
[324931004,1714431048429,-151.0,0.0003717,2]
[324931005,1714431048439,-185.770872,0.0003717,2]
[324931006,1714431048447,-151.0,0.0003717,2]
[324931007,1714431048457,-151.0,0.0003717,2]
[324931008,1714431048466,-151.0,0.0003717,2]
[324931009,1714431048478,-151.0,0.0003717,2]
[324931010,1714431048487,-151.0,0.0003717,2]
[324931011,1714431048497,-151.0,0.0003717,2]
[324931012,1714431048506,-151.0,0.0003717,2]
[324931013,1714431048516,-153.0,0.0003724,2]
[324931014,1714431048526,-306.0,0.0003724,2]
[324931015,1714431048536,-151.0,0.0003724,2]
[324931016,1714431048546,-269.755913,0.0003724,2]
[324931017,1714431048556,-269.755913,0.0003724,2]
[324931018,1714431048567,-470.02544,0.0003724,2]
[324931019,1714431048577,-470.02544,0.0003724,2]
[324931020,1714431048586,-151.0,0.0003724,2]
[324931021,1714431048596,-224.033827,0.00037299,2]
[324931022,1714431048606,-224.033827,0.00037299,2]
[324931023,1714431048615,-153.0,0.00037377,2]
[324931024,1714431048625,-406.00916,0.00037377,2]
[324931025,1714431048635,-153.7952465,0.00037377,2]
[324931026,1714431048643,-153.0,0.00037377,2]
[324931027,1714431048653,-203.7672836,0.00037377,2]
[324931028,1714431048664,-203.7672836,0.00037377,2]
[324931029,1714431048674,-153.0,0.00037377,2]
[324931030,1714431048683,-306.6323411,0.00037377,2]
[324931031,1714431048692,-153.0,0.00037377,2]
[324931032,1714431048701,-203.7672836,0.00037377,2]
[324931033,1714431048711,-406.8000928,0.00037377,2]
[324931034,1714431048720,-597.0,0.00037397,2]
[324931035,1714431048732,-150.0,0.000375,32]
[324931036,1714431048742,-153.0,0.00037651,2]
[324931037,1714431048751,-306.0,0.00037651,2]
[324931038,1714431048760,-500.0,0.00037683,5]
[324931039,1714431048769,-250.0,0.00037689,2]
[324931040,1714431048779,-150.77383924,0.00038152,2]
[324931041,1714431048789,-407.5345672,0.00038199,2]
[324931042,1714431048798,-154.84831847,0.00038304,7]
[324931043,1714431048809,-1626.55,0.00038355,2]
[324931044,1714431048819,-500.0,0.00038356,30]
[324931045,1714431048829,-500.0,0.00038356,30]
[324931046,1714431048838,-500.0,0.00038356,30]
[324931047,1714431048847,-500.0,0.00038356,30]
[324931048,1714431048856,-574.64092662,0.00038356,30]
[324931049,1714431048866,-510.8761019,0.00038356,30]
[324931050,1714431048876,-500.0,0.00038356,30]
[324931051,1714431048886,-500.0,0.00038356,30]
[324931052,1714431048895,-500.0,0.00038356,30]
[324931053,1714431048904,-500.0,0.00038356,30]
[324931054,1714431048914,-500.0,0.00038356,30]
[324931055,1714431048923,-500.0,0.00038356,30]
[324931056,1714431048933,-500.0,0.00038356,30]
[324931057,1714431048943,-285.70800868,0.00038356,30]
[324931058,1714431048952,-176.60487412,0.00038356,30]
[324931059,1714431048961,-500.0,0.00038356,30]
[324931060,1714431048971,-500.0,0.00038356,30]
[324931061,1714431048983,-500.0,0.00038356,30]
[324931062,1714431048992,-500.0,0.00038356,30]
[324931063,1714431049002,-500.0,0.00038356,30]
[324931064,1714431049011,-500.0,0.00038356,30]
[324931065,1714431049020,-500.0,0.00038356,30]
[324931066,1714431049030,-500.0,0.00038356,30]
[324931067,1714431049038,-500.0,0.00038356,30]
[324931068,1714431049047,-500.0,0.00038356,30]
[324931069,1714431049057,-500.0,0.00038356,30]
[324931070,1714431049066,-500.0,0.00038356,30]
[324931071,1714431049075,-500.0,0.00038356,30]
[324931072,1714431049085,-500.0,0.00038356,30]
[324931073,1714431049094,-500.0,0.00038356,30]
[324931074,1714431049103,-500.0,0.00038356,30]
[324931075,1714431049113,-500.0,0.00038356,30]
[324931076,1714431049122,-500.0,0.00038356,30]
[324931077,1714431049131,-581.51,0.00038356,30]
[324931078,1714431049141,-500.0,0.00038356,30]
[324931079,1714431049151,-500.0,0.00038356,30]
[324931080,1714431049160,-500.0,0.00038356,30]
[324931081,1714431049171,-500.0,0.00038356,30]
[324931082,1714431049181,-532.66,0.00038356,30]
[324931083,1714431049190,-161.84105143,0.00038356,30]
[324931084,1714431049200,-500.0,0.00038356,30]
[324931085,1714431049214,-500.0,0.00038356,30]
[324931086,1714431049223,-500.0,0.00038356,30]
[324931087,1714431049234,-500.0,0.00038356,30]
[324931088,1714431049244,-500.0,0.00038356,30]
[324931089,1714431049255,-500.0,0.00038356,30]
[324931090,1714431049264,-500.0,0.00038356,30]
[324931091,1714431049274,-500.0,0.00038356,30]
[324931092,1714431049285,-606.04,0.00038356,30]
[324931093,1714431049295,-500.0,0.00038356,30]
[324931094,1714431049305,-500.0,0.00038356,30]
[324931095,1714431049315,-500.0,0.00038356,30]
[324931096,1714431049325,-500.0,0.00038356,30]
[324931097,1714431049334,-500.0,0.00038356,30]
[324931098,1714431049344,-500.0,0.00038356,30]
[324931099,1714431049354,-500.0,0.00038356,30]
[324931100,1714431049363,-500.0,0.00038356,30]
[324931101,1714431049373,-500.0,0.00038356,30]
[324931102,1714431049383,-500.0,0.00038356,30]
[324931103,1714431049394,-500.0,0.00038356,30]
[324931104,1714431049404,-500.0,0.00038356,30]
[324931105,1714431049412,-567.38,0.00038356,30]
[324931106,1714431049422,-521.62,0.00038356,30]
[324931107,1714431049432,-500.0,0.00038356,30]
[324931108,1714431049441,-500.0,0.00038356,30]
[324931109,1714431049452,-500.0,0.00038356,30]
[324931110,1714431049460,-394.87380458,0.00038356,30]
[324931111,1714431049471,-500.0,0.00038356,30]
[324931112,1714431049483,-500.0,0.00038356,30]
[324931113,1714431049492,-500.0,0.00038356,30]
[324931114,1714431049501,-500.0,0.00038356,30]
[324931115,1714431049510,-500.0,0.00038356,30]
[324931116,1714431049519,-500.0,0.00038356,30]
[324931117,1714431049529,-500.90423701,0.00038356,30]
[324931118,1714431049538,-500.0,0.00038356,30]
[324931119,1714431049547,-293.29513774,0.00038356,30]
[324931120,1714431049558,-500.0,0.00038356,30]
[324931121,1714431049568,-501.1423942,0.00038356,30]
[324931122,1714431049578,-500.0,0.00038356,30]
[324931123,1714431049589,-500.0,0.00038356,30]
[324931124,1714431049599,-500.0,0.00038356,2]
[324931125,1714431049608,-500.0,0.00038356,14]
[324931126,1714431049620,-951.3,0.00038356,30]
[324931127,1714431049630,-500.0,0.00038356,30]
[324931128,1714431049640,-500.0,0.00038356,2]
[324931129,1714431049652,-500.0,0.00038356,30]
[324931130,1714431049662,-500.0,0.00038356,30]
[324931131,1714431049672,-500.0,0.00038356,30]
[324931132,1714431049683,-832.19,0.00038356,30]
[324931133,1714431049692,-500.0,0.00038356,30]
[324931134,1714431049701,-375.85116075,0.00038356,30]
[324931135,1714431049711,-151.0,0.00038356,2]
[324931136,1714431049720,-151.0,0.00038356,2]
[324931137,1714431049732,-151.0,0.00038356,2]
[324931138,1714431049741,-151.0,0.00038356,2]
[324931139,1714431049751,-530.79,0.00038356,30]
[324931140,1714431049760,-500.0,0.00038356,30]
[324931141,1714431049771,-500.0,0.00038356,30]
[324931142,1714431049782,-500.0,0.00038356,30]
[324931143,1714431049792,-624.63,0.00038356,30]
[324931144,1714431049802,-500.0,0.00038356,30]
[324931145,1714431049810,-608.73,0.00038356,30]
[324931146,1714431049820,-562.49542159,0.00038356,30]
[324931147,1714431049829,-500.0,0.00038356,30]
[324931148,1714431049838,-500.0,0.00038356,30]
[324931149,1714431049847,-500.0,0.00038356,30]
[324931150,1714431049856,-595.88290634,0.00038356,30]
[324931151,1714431049865,-500.0,0.00038356,30]
[324931152,1714431049874,-500.0,0.00038356,30]
[324931153,1714431049883,-637.78,0.00038356,30]
[324931154,1714431049893,-965.54,0.00038356,30]
[324931155,1714431049902,-500.0,0.00038356,30]
[324931156,1714431049911,-500.0,0.00038356,30]
[324931157,1714431049921,-306.74552407,0.00038356,30]
[324931158,1714431049930,-791.9,0.00038356,30]
[324931159,1714431049939,-500.0,0.00038356,30]
[324931160,1714431049948,-500.0,0.00038356,30]
[324931161,1714431049958,-249.83765739,0.00038356,30]
[324931162,1714431049968,-500.0,0.00038356,30]
[324931163,1714431049979,-500.0,0.00038356,30]
[324931164,1714431049989,-500.0,0.00038356,30]
[324931165,1714431049998,-537.17,0.00038356,30]
[324931166,1714431050007,-500.0,0.00038356,30]
[324931167,1714431050016,-500.0,0.00038356,2]
[324931168,1714431050026,-500.0,0.00038356,30]
[324931169,1714431050035,-732.14,0.00038356,30]
[324931170,1714431050044,-504.82343252,0.00038356,30]
[324931171,1714431050054,-500.0,0.00038356,30]
[324931172,1714431050063,-500.0,0.00038356,30]
[324931173,1714431050181,-339.6800938,0.00038356,2]
[324931181,1714432034163,-161.35891236,0.00016101,2]
[324931182,1714432034183,-166.666667,0.00018123,2]
[324931183,1714432034204,-300.0,0.00018285,2]
[324931184,1714432034224,-26.27062748,0.00018285,2]
[324931185,1714432173111,-300.0,0.00014728,2]
[324931186,1714432200624,300.0,0.00014728,2]
[324931187,1714432201399,33.09804264,0.00016201,2]
[324931249,1714432232934,-386.90195736,0.00016201,2]
[324931251,1714432232943,-587.0,0.00017821,2]
[324931252,1714432232952,-303.26804264,0.00018258,2]
[324931254,1714432232963,-576.58072311,0.00018258,2]
[324931258,1714432232988,-5575.38686031,0.00018258,2]
[324931452,1714432238867,-12877.29907,0.00018258,2]
[324931458,1714432238924,-5567.46530394,0.00018258,2]
[324931460,1714432238933,-603.75411,0.00018684,2]
[324931462,1714432238943,-638.46340775,0.00018685,2]
[324931464,1714432238953,-161.35891236,0.00018786,2]
[324931466,1714432238963,-2078.27509541,0.000189,2]
[324931469,1714432238972,-154.78330338,0.00018998,2]
[324931471,1714432238981,-3117.34507208,0.00019178,2]
[324931474,1714432238991,-577.27,0.0001999,3]
[324931477,1714432239000,-447.07,0.0001999,3]
[324931479,1714432239009,-213.80486375,0.00019999,2]
[324931481,1714432239018,-500.0,0.00019999,2]
[324931483,1714432239027,-500.0,0.00019999,2]
[324931485,1714432239037,-197.49038207,0.00019999,2]
[324931487,1714432239046,-282.61471808,0.00019999,2]
[324931489,1714432239055,-500.0,0.00019999,2]
[324931491,1714432239064,-500.0,0.00019999,2]
[324931493,1714432239074,-500.0,0.00019999,2]
[324931495,1714432239083,-500.0,0.00019999,2]
[324931497,1714432239093,-67415.61392424,0.0002,2]
[324931499,1714432239102,-200.0,0.0002,2]
[324931501,1714432239111,-443.228487,0.00020025,2]
[324931503,1714432239121,-160.444355,0.00020639,2]
[324931505,1714432239130,-223.54,0.00020904,3]
[324931507,1714432239139,-313.81237693,0.00021,2]
[324931509,1714432239148,-894.14,0.0002136,3]
[324931511,1714432239158,-161.35891236,0.00021472,2]
[324931513,1714432239168,-638.46340769,0.00022107,2]
[324931515,1714432239177,-447.08,0.00022274,3]
[324931517,1714432239186,-411.920795,0.00022466,2]
[324931519,1714432239196,-2078.27509541,0.000239,2]
[324931521,1714432239205,-161.35891236,0.00024157,2]
[324931523,1714432239215,-155.50451249,0.0002475,2]
[324931525,1714432239224,-257.62445157,0.00025,2]
[324931527,1714432239233,-363.86320338,0.00025,2]
[324931529,1714432239243,-638.46340769,0.00025529,2]
[324931531,1714432239252,-2000.0,0.000266,2]
[324931533,1714432239261,-1282.44718455,0.000266,2]
[324931535,1714432239273,-717.55281545,0.000266,2]
[324931537,1714432239282,-161.35891236,0.00026843,2]
[324931539,1714432239291,-155.11008545,0.00026881,2]
[324931541,1714432239300,-154.84831849,0.00027298,2]
[324931543,1714432239309,-166.666666,0.00027397,2]
[324931545,1714432239318,-156.01312999,0.00027944,2]
[324931547,1714432239327,-424.03324128,0.00028,2]
[324931549,1714432239337,-166.666666,0.00028038,2]
[324931551,1714432239347,-411.920795,0.00028493,2]
[324931553,1714432239356,-166.666666,0.00028679,2]
[324931555,1714432239365,-638.46340769,0.00028951,4]
[324931557,1714432239374,-166.666666,0.00029321,2]
[324931559,1714432239382,-161.35891236,0.00029528,2]
[324931561,1714432239392,-166.666666,0.00029962,2]
[324931563,1714432239401,-154.78330338,0.0003,4]
[324931565,1714432239410,-223.0,0.0003,2]
[324931567,1714432239421,-166.666666,0.00030603,2]
[324931569,1714432239431,-283.07886687,0.00031251,4]
[324931571,1714432239440,-153.3495797,0.00031832,2]
[324931573,1714432239449,-638.7649893,0.00032,4]
[324931575,1714432239458,-161.35891236,0.00032214,2]
[324931577,1714432239467,-638.46340769,0.00032373,6]
[324931579,1714432239476,-156.01312999,0.00032588,7]
[324931581,1714432239485,-5381.54184746,0.00033,2]
[324931583,1714432239496,-3878.00169799,0.00033,2]
[324931821,1714432241741,-3074.83627322,0.00033,2]
[324931822,1714432241752,-381.19255689,0.00033,2]
[324931824,1714432241761,-3318.56956054,0.00033,5]
[324931825,1714432241796,-1681.43043946,0.00033,5]
[324931826,1714432241805,-223.0,0.00033,2]
[324931827,1714432241815,-223.0,0.00033,2]
[324931828,1714432241824,-150.0,0.00033834,4]
[324931829,1714432241834,-276.39943109,0.00033999,2]
[324931830,1714432241843,-466.35092847,0.00034,4]
[324931831,1714432241853,-156.01312999,0.00034238,7]
[324931832,1714432241862,-154.84831849,0.00034417,7]
[324931833,1714432241871,-153.79176457,0.0003444,7]
[324931834,1714432241881,-411.920795,0.00034521,2]
[324931835,1714432241890,-154.84831849,0.0003484,7]
[324931836,1714432241899,-161.35891236,0.00034899,2]
[324931837,1714432241909,-318.31355235,0.0003496,3]
[324931878,1714432270012,170.0,0.000225,30]
[324931883,1714433225120,-239.42377791,0.00019417,2]
[324931884,1714433225144,-1808.32864254,0.00019433,2]
[324931885,1714433349213,-1930.38723884,0.000189,2]
[324931886,1714433349234,-255.05818142,0.00019333,2]
[324931887,1714433349254,-6441.91116564,0.00019433,2]
[324931926,1714433431853,-160.444355,0.00019178,2]
[324931928,1714433431863,-355.876931,0.00019433,2]
[324931934,1714433431909,-1142.62246429,0.00019433,2]
[324932318,1714433443262,-0.00195137,0.00019433,2]
[324932713,1714433653795,1530.72169816,9.999e-05,2]
[324932714,1714433721141,154.78330338,9.999e-05,2]
[324932715,1714433735102,154.78330338,9.999e-05,2]
[324932716,1714433749096,300.80416216,9.999e-05,2]
[324932721,1714434550473,1091.47655963,9.999e-05,2]
[324932723,1714434565478,154.78330338,9.999e-05,2]
[324932724,1714434569089,-6846.61869408,0.00018163,2]
[324932725,1714434569110,-343.67918241,0.00018164,2]
[324932726,1714434569131,-10179.9904381,0.00018209,2]
[324932797,1714434638367,-5814.22303121,0.00018209,2]
[324932799,1714434638378,-724.5354082,0.00018209,2]
[324933026,1714434642519,-3338.0,0.00018209,2]
[324933047,1714434643263,-358.13169284,0.00018209,2]
[324933048,1714434643275,-1204.18212563,0.00018209,2]
[324933081,1714435548009,718.54795119,9.999e-05,2]
[324933082,1714435639138,-166.666667,0.0001698,2]
[324933083,1714435639158,-300.0,0.0001776,2]
[324933084,1714435639178,-187.62953984,0.00017761,2]
[324933086,1714435763097,-159.576252,0.000178,2]
[324933087,1714435763118,-214.30615666,0.000179,2]
[324933088,1714435763137,-603.75411,0.00018701,2]
[324933089,1714435763158,-20195.8243466,0.00018702,2]
[324933090,1714435763178,-21055.11225919,0.00018703,2]
[324933102,1714435832448,-189.36782433,0.00018602,2]
[324933103,1714435832458,-541.7258319,0.00018603,2]
[324933104,1714435832467,-3844.88774081,0.00018703,2]
[324933105,1714435832476,-1421.56221677,0.000189,2]
[324933106,1714435832486,-160.401784,0.00019178,2]
[324933107,1714435832495,-160.539393,0.00019178,2]
[324933108,1714435832504,-8822.41856221,0.000193,2]
[324933109,1714435832514,-281.15904372,0.00019433,2]
[324933110,1714435832523,-167.29369631,0.00019433,2]
[324933111,1714435832533,-10114.69792276,0.0002,2]
[324933112,1714435832541,-3955.20467131,0.0002,10]
[324933113,1714435832551,-200.0,0.0002,2]
[324933114,1714435832560,-329.93912296,0.0002,2]
[324933115,1714435832570,-241.68429594,0.00020903,2]
[324933116,1714435832579,-197.49,0.00020904,3]
[324933117,1714435832588,-592.51,0.00020904,3]
[324933118,1714435832598,-364.73496868,0.00020913,2]
[324933119,1714435832607,-541.72583188,0.0002203,2]
[324933120,1714435832616,-394.98,0.00022274,3]
[324933121,1714435832626,-215.707292,0.00022466,2]
[324933122,1714435832635,-172.251936,0.00022466,2]
[324933123,1714435832644,-195.839725,0.00022466,2]
[324933124,1714435832653,-408.587325,0.00022466,2]
[324933125,1714435832665,-457.79503827,0.00022499,2]
[324933126,1714435832675,-1564.03593502,0.000225,2]
[324933127,1714435832684,-2000.0,0.000225,2]
[324933128,1714435832694,-151.0,0.000225,2]
[324933129,1714435832707,-151.0,0.000225,2]
[324933130,1714435832716,-151.0,0.000225,2]
[324933131,1714435832726,-151.0,0.000225,2]
[324933132,1714435832735,-151.0,0.000225,2]
[324933133,1714435832747,-151.0,0.000225,2]
[324933134,1714435832755,-151.0,0.000225,2]
[324933135,1714435832765,-151.0,0.000225,2]
[324933136,1714435832773,-151.0,0.000225,2]
[324933137,1714435832784,-151.0,0.000225,2]
[324933138,1714435832795,-151.0,0.000225,2]
[324933139,1714435832804,-151.0,0.000225,2]
[324933140,1714435832813,-151.0,0.000225,2]
[324933141,1714435832823,-290.643914,0.000225,2]
[324933142,1714435832832,-290.643914,0.000225,2]
[324933143,1714435832841,-290.643914,0.000225,2]
[324933144,1714435832850,-290.643914,0.000225,2]
[324933145,1714435832860,-151.0,0.000225,2]
[324933146,1714435832869,-151.0,0.000225,2]
[324933147,1714435832878,-151.0,0.000225,2]
[324933148,1714435832887,-151.0,0.000225,2]
[324933149,1714435832897,-151.0,0.000225,2]
[324933150,1714435832907,-151.0,0.000225,2]
[324933151,1714435832916,-151.0,0.000225,2]
[324933152,1714435832926,-151.0,0.000225,2]
[324933153,1714435832935,-657.165892,0.000225,2]
[324933154,1714435832944,-657.165892,0.000225,2]
[324933155,1714435832953,-151.0,0.000225,2]
[324933156,1714435832963,-151.0,0.000225,2]
[324933157,1714435832972,-453.926717,0.000225,2]
[324933158,1714435832981,-453.926717,0.000225,2]
[324933159,1714435832991,-453.926717,0.000225,2]
[324933160,1714435833000,-232.078445,0.000225,2]
[324933161,1714435833009,-232.078445,0.000225,2]
[324933162,1714435833018,-453.926717,0.000225,2]
[324933163,1714435833028,-453.926717,0.000225,2]
[324933164,1714435833037,-453.926717,0.000225,2]
[324933165,1714435833046,-232.078445,0.000225,2]
[324933166,1714435833055,-232.078445,0.000225,2]
[324933167,1714435833065,-151.0,0.000225,2]
[324933168,1714435833074,-151.0,0.000225,2]
[324933169,1714435833084,-151.0,0.000225,2]
[324933170,1714435833093,-151.0,0.000225,2]
[324933171,1714435833103,-151.0,0.000225,2]
[324933172,1714435833112,-151.0,0.000225,2]